[Event "Kvibergspelen 2022"]
[Site "Kviberg Park Hotel & Conference, Krutvagen 2, Gothenburg, Sweden"]
[Date "2022.09.30"]
[Round "2.10"]
[White "Radberg, John"]
[Black "Mohammadi, Amir"]
[Result "0-1"]
[TimeControl "15 minutes + 5 seconds per move from move one (Round 1 - 4) / 90 minutes + 30 seconds per move from move one (Round 5 - 8)"]
[WhiteFideId "1720074"]
[BlackFideId "1705890"]
[WhiteElo "1909"]
[BlackElo "2294"]

1. e4 {[%clk 00:15:07]} {[%emt 00:00:02]} c5 {[%clk 00:15:09]} {[%emt
00:00:01]} 2. Nf3 {[%clk 00:15:07]} {[%emt 00:00:06]} e6 {[%clk 00:15:13]}
{[%emt 00:00:01]} 3. d4 {[%clk 00:15:04]} {[%emt 00:00:07]} cxd4 {[%clk
00:15:16]} {[%emt 00:00:02]} 4. Nxd4 {[%clk 00:15:01]} {[%emt 00:00:09]} Nf6
{[%clk 00:15:19]} {[%emt 00:00:02]} 5. Nc3 {[%clk 00:14:54]} {[%emt 00:00:12]}
d6 {[%clk 00:15:21]} {[%emt 00:00:02]} 6. Be3 {[%clk 00:14:23]} {[%emt
00:00:36]} a6 {[%clk 00:15:21]} {[%emt 00:00:05]} 7. Be2 {[%clk 00:14:20]}
{[%emt 00:00:08]} Be7 {[%clk 00:15:20]} {[%emt 00:00:06]} 8. a4 {[%clk
00:14:18]} {[%emt 00:00:08]} O-O {[%clk 00:15:18]} {[%emt 00:00:07]} 9. O-O
{[%clk 00:14:19]} {[%emt 00:00:03]} Qc7 {[%clk 00:15:19]} {[%emt 00:00:05]} 10.
f4 {[%clk 00:14:10]} {[%emt 00:00:13]} Bd7 {[%clk 00:14:55]} {[%emt 00:00:29]}
11. Kh1 {[%clk 00:14:05]} {[%emt 00:00:10]} Nc6 {[%clk 00:14:58]} {[%emt
00:00:02]} 12. Bf3 {[%clk 00:13:49]} {[%emt 00:00:21]} Rfd8 {[%clk 00:13:40]}
{[%emt 00:01:24]} 13. Qe2 {[%clk 00:13:31]} {[%emt 00:00:22]} Nxd4 {[%clk
00:13:16]} {[%emt 00:00:29]} 14. Bxd4 {[%clk 00:13:32]} {[%emt 00:00:04]} Bc6
{[%clk 00:13:15]} {[%emt 00:00:06]} 15. a5 {[%clk 00:12:25]} {[%emt 00:01:12]}
Nd7 {[%clk 00:12:26]} {[%emt 00:00:54]} 16. e5 {[%clk 00:10:09]} {[%emt
00:02:21]} dxe5 {[%clk 00:10:14]} {[%emt 00:02:17]} 17. fxe5 {[%clk 00:09:58]}
{[%emt 00:00:17]} Bc5 {[%clk 00:09:32]} {[%emt 00:00:47]} 18. Bxc5 {[%clk
00:08:22]} {[%emt 00:01:40]} Nxc5 {[%clk 00:09:22]} {[%emt 00:00:15]} 19. Bxc6
{[%clk 00:06:55]} {[%emt 00:01:32]} Qxc6 {[%clk 00:09:23]} {[%emt 00:00:05]} 20.
Qh5 {[%clk 00:06:46]} {[%emt 00:00:13]} Rd7 {[%clk 00:08:04]} {[%emt 00:01:24]}
21. Rf4 {[%clk 00:06:08]} {[%emt 00:00:43]} Rf8 {[%clk 00:06:04]} {[%emt
00:02:05]} 22. Raf1 {[%clk 00:05:39]} {[%emt 00:00:35]} Rd2 {[%clk 00:04:43]}
{[%emt 00:01:25]} 23. Qg5 {[%clk 00:03:56]} {[%emt 00:01:48]} g6 {[%clk
00:01:07]} {[%emt 00:03:41]} 24. Rc4 {[%clk 00:02:24]} {[%emt 00:01:38]} Rxc2
{[%clk 00:00:21]} {[%emt 00:00:50]} 25. b4 {[%clk 00:02:25]} {[%emt 00:00:05]}
Ne4 {[%clk 00:00:23]} {[%emt 00:00:02]} 26. Nxe4 {[%clk 00:01:04]} {[%emt
00:01:26]} Qxc4 {[%clk 00:00:25]} {[%emt 00:00:03]} 27. Nf6+ {[%clk 00:00:39]}
{[%emt 00:00:30]} Kg7 {[%clk 00:00:29]} {[%emt 00:00:02]} 28. Nh5+ {[%clk
00:00:40]} {[%emt 00:00:03]} Kg8 {[%clk 00:00:33]} 29. Nf6+ {[%clk 00:00:44]}
Kh8 {[%clk 00:00:33]} {[%emt 00:00:05]} 30. Rg1 {[%clk 00:00:41]} {[%emt
00:00:08]} Rg8 {[%clk 00:00:20]} {[%emt 00:00:18]} 31. Nxh7 {[%clk 00:00:24]}
{[%emt 00:00:23]} Kxh7 {[%clk 00:00:16]} {[%emt 00:00:09]} 32. Qh4+ {[%clk
00:00:27]} {[%emt 00:00:02]} Qxh4 {[%clk 00:00:19]} {[%emt 00:00:01]} 0-1

[Event "Kvibergspelen 2022"]
[Site "Kviberg Park Hotel & Conference, Krutvagen 2, Gothenburg, Sweden"]
[Date "2022.09.30"]
[Round "2.11"]
[White "Olsson, William"]
[Black "Westerlund, Ola"]
[Result "1-0"]
[TimeControl "15 minutes + 5 seconds per move from move one (Round 1 - 4) / 90 minutes + 30 seconds per move from move one (Round 5 - 8)"]
[WhiteTitle "FM"]
[WhiteFideId "1741721"]
[BlackFideId "1712101"]
[WhiteElo "2288"]
[BlackElo "1907"]

1. c4 {[%clk 00:15:07]} {[%emt 00:00:02]} c5 {[%clk 00:15:08]} {[%emt
00:00:02]} 2. Nc3 {[%clk 00:15:11]} {[%emt 00:00:02]} Nc6 {[%clk 00:15:11]}
{[%emt 00:00:01]} 3. g3 {[%clk 00:15:15]} {[%emt 00:00:02]} g6 {[%clk
00:15:15]} 4. Bg2 {[%clk 00:15:18]} {[%emt 00:00:01]} Bg7 {[%clk 00:15:19]}
{[%emt 00:00:02]} 5. a3 {[%clk 00:15:22]} e5 {[%clk 00:15:15]} {[%emt
00:00:09]} 6. Rb1 {[%clk 00:15:26]} a5 {[%clk 00:15:10]} {[%emt 00:00:09]} 7.
e3 {[%clk 00:15:24]} {[%emt 00:00:07]} Nge7 {[%clk 00:14:40]} {[%emt 00:00:35]}
8. Nge2 {[%clk 00:15:27]} {[%emt 00:00:02]} d6 {[%clk 00:14:36]} {[%emt
00:00:09]} 9. O-O {[%clk 00:15:29]} {[%emt 00:00:03]} Be6 {[%clk 00:14:32]}
{[%emt 00:00:09]} 10. Nd5 {[%clk 00:15:33]} {[%emt 00:00:02]} Rb8 {[%clk
00:14:12]} {[%emt 00:00:24]} 11. Nec3 {[%clk 00:15:37]} {[%emt 00:00:02]} O-O
{[%clk 00:14:03]} {[%emt 00:00:13]} 12. d3 {[%clk 00:15:36]} {[%emt 00:00:06]}
f5 {[%clk 00:12:55]} {[%emt 00:01:13]} 13. Bd2 {[%clk 00:15:40]} Kh8 {[%clk
00:11:26]} {[%emt 00:01:34]} 14. Qe1 {[%clk 00:13:43]} {[%emt 00:02:02]} b6
{[%clk 00:10:45]} {[%emt 00:00:46]} 15. Qe2 {[%clk 00:12:55]} {[%emt 00:00:53]}
Qd7 {[%clk 00:10:35]} {[%emt 00:00:15]} 16. f4 {[%clk 00:12:35]} {[%emt
00:00:26]} Bg8 {[%clk 00:10:04]} {[%emt 00:00:36]} 17. b4 {[%clk 00:11:45]}
{[%emt 00:00:55]} axb4 {[%clk 00:09:56]} {[%emt 00:00:12]} 18. axb4 {[%clk
00:11:47]} {[%emt 00:00:03]} Nxd5 {[%clk 00:06:25]} {[%emt 00:03:36]} 19. Nxd5
{[%clk 00:11:43]} {[%emt 00:00:10]} Bxd5 {[%clk 00:04:09]} {[%emt 00:02:21]} 20.
Bxd5 {[%clk 00:11:40]} {[%emt 00:00:07]} Nxb4 {[%clk 00:04:12]} {[%emt
00:00:02]} 21. Bxb4 {[%clk 00:11:43]} {[%emt 00:00:02]} cxb4 {[%clk 00:04:16]}
{[%emt 00:00:01]} 22. Rxb4 {[%clk 00:11:06]} {[%emt 00:00:42]} exf4 {[%clk
00:03:15]} {[%emt 00:01:08]} 23. gxf4 {[%clk 00:09:26]} {[%emt 00:01:44]} Rfe8
{[%clk 00:03:17]} {[%emt 00:00:02]} 24. Kh1 {[%clk 00:08:33]} {[%emt 00:00:58]}
Bd4 {[%clk 00:02:27]} {[%emt 00:00:55]} 25. e4 {[%clk 00:08:15]} {[%emt
00:00:23]} Qa7 {[%clk 00:01:20]} {[%emt 00:01:11]} 26. Rb5 {[%clk 00:06:17]}
{[%emt 00:02:04]} Re7 {[%clk 00:01:15]} {[%emt 00:00:10]} 27. Qd2 {[%clk
00:04:56]} {[%emt 00:01:26]} Rf8 {[%clk 00:01:17]} {[%emt 00:00:02]} 28. Bc6
{[%clk 00:04:20]} {[%emt 00:00:41]} Qc7 {[%clk 00:01:21]} {[%emt 00:00:02]} 29.
Bd5 {[%clk 00:04:16]} {[%emt 00:00:09]} Rg7 {[%clk 00:00:41]} {[%emt 00:00:44]}
30. Be6 {[%clk 00:03:46]} {[%emt 00:00:35]} Qb7 1-0

[Event "Kvibergspelen 2022"]
[Site "Kviberg Park Hotel & Conference, Krutvagen 2, Gothenburg, Sweden"]
[Date "2022.09.30"]
[Round "2.13"]
[White "Kashwan, Hassan"]
[Black "Burwick, Malte"]
[Result "1-0"]
[TimeControl "15 minutes + 5 seconds per move from move one (Round 1 - 4) / 90 minutes + 30 seconds per move from move one (Round 5 - 8)"]
[WhiteFideId "137122555"]
[BlackFideId "1702475"]
[WhiteElo "1902"]
[BlackElo "2225"]

1. d4 {[%clk 00:14:53]} {[%emt 00:00:16]} g6 {[%clk 00:15:09]} {[%emt
00:00:02]} 2. c4 {[%clk 00:14:55]} {[%emt 00:00:03]} Bg7 {[%clk 00:15:13]}
{[%emt 00:00:01]} 3. Nc3 {[%clk 00:14:58]} {[%emt 00:00:02]} d6 {[%clk
00:15:17]} {[%emt 00:00:02]} 4. e4 {[%clk 00:14:58]} {[%emt 00:00:04]} Nd7
{[%clk 00:15:15]} {[%emt 00:00:07]} 5. Be2 {[%clk 00:14:57]} {[%emt 00:00:06]}
e5 {[%clk 00:15:18]} {[%emt 00:00:03]} 6. d5 {[%clk 00:14:44]} {[%emt
00:00:18]} Ne7 {[%clk 00:15:09]} {[%emt 00:00:14]} 7. h4 {[%clk 00:14:21]}
{[%emt 00:00:27]} f5 {[%clk 00:15:10]} {[%emt 00:00:05]} 8. Bg5 {[%clk
00:14:16]} {[%emt 00:00:10]} Nf6 {[%clk 00:14:51]} {[%emt 00:00:24]} 9. Qd2
{[%clk 00:13:55]} {[%emt 00:00:26]} h6 {[%clk 00:14:43]} {[%emt 00:00:13]} 10.
Bxf6 {[%clk 00:13:47]} {[%emt 00:00:13]} Bxf6 {[%clk 00:14:46]} {[%emt
00:00:02]} 11. h5 {[%clk 00:13:42]} {[%emt 00:00:10]} g5 {[%clk 00:14:33]}
{[%emt 00:00:18]} 12. f3 {[%clk 00:13:24]} {[%emt 00:00:24]} O-O {[%clk
00:14:01]} {[%emt 00:00:37]} 13. Nh3 {[%clk 00:12:41]} {[%emt 00:00:47]} a6
{[%clk 00:09:51]} {[%emt 00:04:16]} 14. Nf2 {[%clk 00:12:07]} {[%emt 00:00:39]}
Bg7 {[%clk 00:09:22]} {[%emt 00:00:35]} 15. Nd3 {[%clk 00:11:39]} {[%emt
00:00:33]} c5 {[%clk 00:09:20]} {[%emt 00:00:07]} 16. a4 {[%clk 00:11:29]}
{[%emt 00:00:15]} Bd7 {[%clk 00:09:06]} {[%emt 00:00:19]} 17. a5 {[%clk
00:11:26]} {[%emt 00:00:08]} b6 {[%clk 00:09:02]} {[%emt 00:00:08]} 18. axb6
{[%clk 00:10:51]} {[%emt 00:00:41]} Qxb6 {[%clk 00:09:05]} {[%emt 00:00:02]} 19.
Na4 {[%clk 00:10:02]} {[%emt 00:00:55]} Qa7 {[%clk 00:08:24]} {[%emt 00:00:45]}
20. Nf2 {[%clk 00:09:13]} {[%emt 00:00:52]} Rfb8 {[%clk 00:08:17]} {[%emt
00:00:14]} 21. exf5 {[%clk 00:08:36]} {[%emt 00:00:43]} Rb4 {[%clk 00:08:16]}
{[%emt 00:00:06]} 22. f6 {[%clk 00:08:17]} {[%emt 00:00:23]} Rxa4 {[%clk
00:07:29]} {[%emt 00:00:50]} 23. Rxa4 {[%clk 00:08:13]} {[%emt 00:00:10]} Bxa4
{[%clk 00:07:33]} {[%emt 00:00:01]} 24. fxg7 {[%clk 00:08:06]} {[%emt
00:00:12]} Qb6 {[%clk 00:06:40]} {[%emt 00:00:57]} 25. Ne4 {[%clk 00:07:52]}
{[%emt 00:00:19]} Kxg7 {[%clk 00:06:27]} {[%emt 00:00:18]} 26. O-O {[%clk
00:07:05]} {[%emt 00:00:53]} Rb8 {[%clk 00:05:05]} {[%emt 00:01:26]} 27. Nxg5
{[%clk 00:05:34]} {[%emt 00:01:35]} hxg5 {[%clk 00:05:09]} {[%emt 00:00:02]} 28.
Qxg5+ {[%clk 00:05:38]} Kf7 {[%clk 00:05:13]} 29. f4 {[%clk 00:05:30]} {[%emt
00:00:13]} e4 {[%clk 00:05:02]} {[%emt 00:00:16]} 30. h6 {[%clk 00:05:31]}
{[%emt 00:00:05]} Qxb2 {[%clk 00:04:58]} {[%emt 00:00:08]} 31. Bh5+ {[%clk
00:05:34]} {[%emt 00:00:01]} Kf8 {[%clk 00:05:02]} {[%emt 00:00:02]} 32. f5
{[%clk 00:04:09]} {[%emt 00:01:30]} Qe5 {[%clk 00:03:21]} {[%emt 00:01:45]} 33.
h7 {[%clk 00:03:06]} {[%emt 00:01:08]} Qd4+ {[%clk 00:01:59]} {[%emt 00:01:27]}
34. Kh1 {[%clk 00:02:58]} {[%emt 00:00:11]} Qg7 {[%clk 00:02:02]} {[%emt
00:00:04]} 35. Qxg7+ {[%clk 00:03:01]} {[%emt 00:00:03]} Kxg7 {[%clk 00:02:06]}
36. f6+ {[%clk 00:03:05]} {[%emt 00:00:02]} Kxh7 {[%clk 00:01:57]} {[%emt
00:00:14]} 37. fxe7 {[%clk 00:03:08]} {[%emt 00:00:01]} Kh6 {[%clk 00:01:43]}
{[%emt 00:00:20]} 38. g4 {[%clk 00:02:42]} {[%emt 00:00:31]} e3 {[%emt
00:00:21]} 39. Re1 {[%clk 00:02:26]} {[%emt 00:00:09]} Be8 {[%clk 00:01:33]}
{[%emt 00:00:11]} 40. Bxe8 {[%clk 00:02:29]} {[%emt 00:00:03]} Rxe8 {[%clk
00:01:37]} 41. Rxe3 {[%clk 00:02:32]} {[%emt 00:00:01]} Kg5 {[%clk 00:01:34]}
{[%emt 00:00:08]} 42. Kg2 {[%clk 00:02:18]} {[%emt 00:00:19]} Kxg4 {[%clk
00:01:36]} {[%emt 00:00:03]} 43. Kf2 {[%clk 00:02:18]} {[%emt 00:00:05]} Kf4
{[%clk 00:01:38]} {[%emt 00:00:03]} 44. Re6 {[%clk 00:02:22]} {[%emt 00:00:02]}
a5 {[%clk 00:01:38]} {[%emt 00:00:05]} 45. Ke2 {[%clk 00:02:26]} a4 {[%clk
00:01:30]} {[%emt 00:00:14]} 46. Kd2 {[%clk 00:02:14]} {[%emt 00:00:16]} a3
{[%clk 00:00:58]} {[%emt 00:00:38]} 47. Kc2 {[%clk 00:02:13]} {[%emt 00:00:06]}
Kf5 {[%clk 00:00:43]} {[%emt 00:00:21]} 48. Kb3 {[%clk 00:02:16]} {[%emt
00:00:03]} 1-0

[Event "Kvibergspelen 2022"]
[Site "Kviberg Park Hotel & Conference, Krutvagen 2, Gothenburg, Sweden"]
[Date "2022.09.30"]
[Round "2.14"]
[White "Johannesson, Oliver"]
[Black "Hauksson, Hordur Aron"]
[Result "1-0"]
[TimeControl "15 minutes + 5 seconds per move from move one (Round 1 - 4) / 90 minutes + 30 seconds per move from move one (Round 5 - 8)"]
[WhiteTitle "FM"]
[WhiteFideId "2305623"]
[BlackFideId "2303680"]
[WhiteElo "2205"]
[BlackElo "1882"]

1. d4 {[%clk 00:15:07]} {[%emt 00:00:02]} d5 {[%clk 00:15:01]} {[%emt
00:00:10]} 2. c4 {[%clk 00:15:09]} {[%emt 00:00:03]} e6 {[%clk 00:15:03]}
{[%emt 00:00:03]} 3. Nc3 {[%clk 00:15:12]} {[%emt 00:00:02]} Nf6 {[%clk
00:15:05]} {[%emt 00:00:03]} 4. cxd5 {[%clk 00:15:16]} {[%emt 00:00:02]} exd5
{[%clk 00:15:03]} {[%emt 00:00:07]} 5. Bg5 {[%clk 00:15:15]} {[%emt 00:00:06]}
c6 {[%clk 00:14:53]} {[%emt 00:00:15]} 6. Qc2 {[%clk 00:15:14]} {[%emt
00:00:05]} h6 {[%clk 00:14:22]} {[%emt 00:00:36]} 7. Bh4 {[%clk 00:15:16]}
{[%emt 00:00:03]} Nbd7 {[%clk 00:14:12]} {[%emt 00:00:16]} 8. e3 {[%clk
00:15:18]} {[%emt 00:00:04]} Be7 {[%clk 00:14:13]} {[%emt 00:00:03]} 9. Bd3
{[%clk 00:15:21]} {[%emt 00:00:02]} O-O {[%clk 00:14:13]} {[%emt 00:00:05]} 10.
Nge2 {[%clk 00:15:22]} {[%emt 00:00:04]} Re8 {[%clk 00:14:13]} {[%emt
00:00:05]} 11. f3 {[%clk 00:15:16]} {[%emt 00:00:11]} c5 {[%clk 00:12:21]}
{[%emt 00:01:57]} 12. O-O {[%clk 00:14:45]} {[%emt 00:00:35]} cxd4 {[%clk
00:10:16]} {[%emt 00:02:10]} 13. Nxd4 {[%clk 00:13:37]} {[%emt 00:01:14]} Ne5
{[%clk 00:09:51]} {[%emt 00:00:29]} 14. Rad1 {[%clk 00:12:58]} {[%emt
00:00:43]} Be6 {[%clk 00:03:57]} {[%emt 00:06:00]} 15. Qb3 {[%clk 00:12:25]}
{[%emt 00:00:38]} Qb6 {[%clk 00:03:17]} {[%emt 00:00:46]} 16. Qxb6 {[%clk
00:12:28]} {[%emt 00:00:02]} axb6 {[%clk 00:03:21]} 17. Bf5 {[%clk 00:10:24]}
{[%emt 00:02:09]} Bxf5 {[%clk 00:02:59]} {[%emt 00:00:27]} 18. Nxf5 {[%clk
00:10:27]} {[%emt 00:00:01]} Nc4 {[%clk 00:02:52]} {[%emt 00:00:13]} 19. Nxe7+
{[%clk 00:10:07]} {[%emt 00:00:25]} Rxe7 {[%clk 00:02:52]} {[%emt 00:00:05]} 20.
Bxf6 {[%clk 00:10:10]} {[%emt 00:00:02]} gxf6 {[%clk 00:02:55]} {[%emt
00:00:02]} 21. Nxd5 {[%clk 00:10:13]} {[%emt 00:00:02]} Rxe3 {[%clk 00:01:48]}
{[%emt 00:01:13]} 22. b3 {[%clk 00:09:51]} {[%emt 00:00:27]} Rxa2 {[%clk
00:00:31]} {[%emt 00:01:22]} 23. bxc4 {[%clk 00:09:55]} {[%emt 00:00:01]} Ree2
{[%clk 00:00:34]} 24. Nf4 {[%clk 00:09:57]} {[%emt 00:00:02]} Rec2 {[%clk
00:00:37]} {[%emt 00:00:03]} 25. Rc1 {[%clk 00:09:35]} {[%emt 00:00:28]} Rcb2
{[%clk 00:00:36]} {[%emt 00:00:06]} 26. Rb1 {[%clk 00:09:34]} {[%emt 00:00:05]}
Rc2 {[%clk 00:00:38]} {[%emt 00:00:03]} 27. Rxb6 {[%clk 00:09:27]} {[%emt
00:00:12]} Rxc4 {[%clk 00:00:42]} {[%emt 00:00:02]} 28. Nh3 {[%clk 00:09:21]}
{[%emt 00:00:10]} Rcc2 {[%clk 00:00:35]} {[%emt 00:00:13]} 29. Nf2 {[%clk
00:09:25]} Ra7 {[%clk 00:00:31]} {[%emt 00:00:10]} 30. Rxf6 {[%clk 00:09:24]}
{[%emt 00:00:05]} Kg7 {[%clk 00:00:32]} {[%emt 00:00:03]} 31. Rb6 {[%clk
00:09:28]} {[%emt 00:00:02]} Rd2 {[%clk 00:00:35]} {[%emt 00:00:03]} 32. h3
{[%clk 00:08:51]} {[%emt 00:00:41]} Re2 {[%clk 00:00:38]} {[%emt 00:00:03]} 33.
Ne4 {[%clk 00:08:50]} {[%emt 00:00:06]} Raa2 {[%clk 00:00:34]} {[%emt
00:00:09]} 34. Rf2 {[%clk 00:08:28]} {[%emt 00:00:26]} Re1+ {[%clk 00:00:34]}
{[%emt 00:00:04]} 35. Kh2 {[%clk 00:08:32]} {[%emt 00:00:01]} Rxe4 {[%clk
00:00:38]} {[%emt 00:00:02]} 36. Rxa2 {[%clk 00:08:33]} {[%emt 00:00:04]} 1-0

[Event "Kvibergspelen 2022"]
[Site "Kviberg Park Hotel & Conference, Krutvagen 2, Gothenburg, Sweden"]
[Date "2022.09.30"]
[Round "2.15"]
[White "Nackholm, Erik"]
[Black "Rasti, Arvin"]
[Result "0-1"]
[TimeControl "15 minutes + 5 seconds per move from move one (Round 1 - 4) / 90 minutes + 30 seconds per move from move one (Round 5 - 8)"]
[WhiteFideId "1721593"]
[BlackFideId "1741160"]
[WhiteElo "1861"]
[BlackElo "2186"]

1. e4 {[%clk 00:15:08]} {[%emt 00:00:01]} c6 {[%clk 00:15:07]} {[%emt
00:00:04]} 2. d4 {[%clk 00:15:10]} {[%emt 00:00:03]} d5 {[%clk 00:15:11]}
{[%emt 00:00:01]} 3. exd5 {[%clk 00:15:15]} cxd5 {[%clk 00:15:15]} {[%emt
00:00:01]} 4. Bd3 {[%clk 00:15:19]} Nf6 {[%clk 00:15:16]} {[%emt 00:00:03]} 5.
c3 {[%clk 00:15:22]} {[%emt 00:00:02]} Bg4 {[%clk 00:15:18]} {[%emt 00:00:02]}
6. Qb3 {[%clk 00:15:27]} {[%emt 00:00:01]} Qc7 {[%clk 00:15:11]} {[%emt
00:00:12]} 7. h3 {[%clk 00:12:37]} {[%emt 00:02:54]} Bd7 {[%clk 00:15:07]}
{[%emt 00:00:09]} 8. Nf3 {[%clk 00:12:27]} {[%emt 00:00:16]} e6 {[%clk
00:15:10]} {[%emt 00:00:02]} 9. Ne5 {[%clk 00:11:00]} {[%emt 00:01:33]} Bd6
{[%clk 00:14:29]} {[%emt 00:00:45]} 10. Nxd7 {[%clk 00:10:19]} {[%emt
00:00:46]} Nbxd7 {[%clk 00:14:31]} {[%emt 00:00:02]} 11. Na3 {[%clk 00:09:46]}
{[%emt 00:00:39]} a6 {[%clk 00:14:27]} {[%emt 00:00:09]} 12. Nc2 {[%clk
00:09:49]} {[%emt 00:00:02]} O-O {[%clk 00:13:22]} {[%emt 00:01:10]} 13. O-O
{[%clk 00:09:29]} {[%emt 00:00:25]} Nh5 {[%clk 00:12:54]} {[%emt 00:00:32]} 14.
Re1 {[%clk 00:09:04]} {[%emt 00:00:30]} Nf4 {[%clk 00:12:44]} {[%emt 00:00:15]}
15. Bf1 {[%clk 00:09:07]} {[%emt 00:00:02]} Nf6 {[%clk 00:12:31]} {[%emt
00:00:19]} 16. Nb4 {[%clk 00:07:11]} {[%emt 00:02:01]} Ne4 {[%clk 00:11:54]}
{[%emt 00:00:42]} 17. Nd3 {[%clk 00:06:19]} {[%emt 00:00:56]} Nxd3 {[%clk
00:11:04]} {[%emt 00:00:55]} 18. Bxd3 {[%clk 00:06:10]} {[%emt 00:00:15]} Nxf2
{[%clk 00:10:28]} {[%emt 00:00:41]} 19. Kxf2 {[%clk 00:05:08]} {[%emt
00:01:07]} Bg3+ {[%clk 00:10:32]} {[%emt 00:00:02]} 20. Kf1 {[%clk 00:05:06]}
{[%emt 00:00:06]} Bxe1 {[%clk 00:10:28]} {[%emt 00:00:09]} 21. Kxe1 {[%clk
00:04:17]} {[%emt 00:00:53]} Qg3+ {[%clk 00:10:32]} {[%emt 00:00:02]} 22. Kd2
{[%clk 00:03:59]} {[%emt 00:00:24]} Qxg2+ {[%clk 00:10:17]} {[%emt 00:00:19]}
23. Be2 {[%clk 00:03:56]} {[%emt 00:00:08]} f5 {[%clk 00:10:13]} {[%emt
00:00:09]} 24. Qd1 {[%clk 00:03:19]} {[%emt 00:00:41]} f4 {[%clk 00:10:15]}
{[%emt 00:00:03]} 25. Ke1 {[%clk 00:02:28]} {[%emt 00:00:57]} f3 {[%clk
00:10:04]} {[%emt 00:00:17]} 26. Bf1 {[%clk 00:02:30]} {[%emt 00:00:02]} Qg3+
{[%clk 00:09:37]} {[%emt 00:00:32]} 27. Kd2 {[%clk 00:02:34]} {[%emt 00:00:02]}
e5 {[%clk 00:09:28]} {[%emt 00:00:14]} 28. dxe5 {[%clk 00:02:25]} {[%emt
00:00:15]} d4 {[%clk 00:09:27]} {[%emt 00:00:07]} 29. cxd4 {[%clk 00:02:10]}
{[%emt 00:00:20]} Rad8 {[%clk 00:09:19]} {[%emt 00:00:12]} 30. Qb3+ {[%clk
00:02:05]} {[%emt 00:00:11]} Kh8 {[%clk 00:09:23]} {[%emt 00:00:01]} 31. Qe3
{[%clk 00:01:43]} {[%emt 00:00:26]} Rf4 {[%clk 00:08:59]} {[%emt 00:00:29]} 32.
d5 {[%clk 00:01:36]} {[%emt 00:00:12]} Rxd5+ {[%clk 00:08:58]} {[%emt
00:00:06]} 33. Kc2 {[%clk 00:01:33]} {[%emt 00:00:09]} Qg6+ {[%clk 00:08:42]}
{[%emt 00:00:20]} 34. Bd3 {[%clk 00:01:18]} {[%emt 00:00:20]} Rc4+ {[%clk
00:08:46]} {[%emt 00:00:01]} 0-1

[Event "Kvibergspelen 2022"]
[Site "Kviberg Park Hotel & Conference, Krutvagen 2, Gothenburg, Sweden"]
[Date "2022.09.30"]
[Round "2.16"]
[White "Malmqvist, Glenn"]
[Black "Frost, Niklas"]
[Result "1-0"]
[TimeControl "15 minutes + 5 seconds per move from move one (Round 1 - 4) / 90 minutes + 30 seconds per move from move one (Round 5 - 8)"]
[WhiteFideId "1705750"]
[BlackFideId "1717235"]
[WhiteElo "2172"]
[BlackElo "1843"]

1. e4 {[%clk 00:15:08]} {[%emt 00:00:02]} c5 {[%clk 00:15:06]} {[%emt
00:00:05]} 2. Nf3 {[%clk 00:15:10]} {[%emt 00:00:02]} g6 {[%clk 00:15:07]}
{[%emt 00:00:05]} 3. d4 {[%clk 00:15:06]} {[%emt 00:00:09]} cxd4 {[%clk
00:15:07]} {[%emt 00:00:04]} 4. Nxd4 {[%clk 00:15:10]} {[%emt 00:00:02]} Bg7
{[%clk 00:15:06]} {[%emt 00:00:07]} 5. c4 {[%clk 00:15:11]} {[%emt 00:00:04]}
Nc6 {[%clk 00:14:53]} {[%emt 00:00:18]} 6. Be3 {[%clk 00:15:14]} {[%emt
00:00:02]} Nf6 {[%clk 00:14:51]} {[%emt 00:00:07]} 7. Nc3 {[%clk 00:15:18]}
{[%emt 00:00:02]} d6 {[%clk 00:14:49]} {[%emt 00:00:07]} 8. Be2 {[%clk
00:15:16]} {[%emt 00:00:07]} O-O {[%clk 00:14:41]} {[%emt 00:00:12]} 9. O-O
{[%clk 00:15:13]} {[%emt 00:00:08]} Ng4 {[%clk 00:13:19]} {[%emt 00:01:27]} 10.
Bxg4 {[%clk 00:14:24]} {[%emt 00:00:53]} Bxg4 {[%clk 00:13:21]} {[%emt
00:00:03]} 11. Nxc6 {[%clk 00:07:48]} {[%emt 00:06:41]} Bxd1 {[%clk 00:13:17]}
{[%emt 00:00:08]} 12. Nxd8 {[%clk 00:07:51]} {[%emt 00:00:03]} Bc2 {[%clk
00:13:10]} {[%emt 00:00:13]} 13. Nxb7 {[%clk 00:07:45]} {[%emt 00:00:11]} Rfb8
{[%clk 00:13:04]} {[%emt 00:00:10]} 14. Rac1 {[%clk 00:07:11]} {[%emt
00:00:40]} Bd3 {[%clk 00:12:32]} {[%emt 00:00:37]} 15. Rfd1 {[%clk 00:07:11]}
{[%emt 00:00:05]} Bxc4 {[%clk 00:08:27]} {[%emt 00:04:10]} 16. Na5 {[%clk
00:07:13]} {[%emt 00:00:02]} Be6 {[%clk 00:06:34]} {[%emt 00:01:58]} 17. b3
{[%clk 00:06:49]} {[%emt 00:00:29]} a6 {[%clk 00:05:18]} {[%emt 00:01:22]} 18.
Nd5 {[%clk 00:06:24]} {[%emt 00:00:29]} Kf8 {[%clk 00:04:39]} {[%emt 00:00:44]}
19. Nc7 {[%clk 00:06:11]} {[%emt 00:00:18]} 1-0